[Event "DSAM Bad Wildungen 2024"]
[Site "Bad Wildungen"]
[Date "2024.08.01"]
[Round "2.17"]
[White "Muendoerfer, Sebastian"]
[Black "Schelkmann, Carl"]
[Result "1-0"]
[Annotator "RC"]
[ECO "D31"]
[WhiteElo "1988"]
[BlackElo "1884"]
[PlyCount "123"]
[EventDate "2024.07.31"]
[EventCountry "GER"]
[SourceTitle "playchess.com"]
[Source "ChessBase"]
[SourceQuality "1"]
[TimeControl "40/5400+30:900+30"]

1. d4 {[%emt 0:00:04]} d5 {[%emt 0:00:03]} 2. c4 {[%emt 0:00:06]} e6 {[%emt 0:00:04]} 3. Nc3 {[%emt 0:00:08]} a6 {[%emt 0:00:02]} 4. cxd5 {[%emt 0:00:39]} exd5 {[%emt 0:00:05]} 5. Nf3 {[%emt 0:00:08]} c6 {[%emt 0:00:06]} 6. Qc2 {[%emt 0:00:50]} Bd6 {[%emt 0:02:06]} 7. Bg5 {[%emt 0:02:06]} Ne7 {[%emt 0:00:26]} 8. e3 {[%emt 0:01:55]} h6 {[%emt 0:00:30]} 9. Bh4 {[%emt 0:01:34]} Bf5 {[%emt 0:06:35]} 10. Qxf5 {[%emt 0:04:02]} Nxf5 {[%emt 0:00:05]} 11. Bxd8 {[%emt 0:00:08]} Kxd8 {[%emt 0:00:07]} 12. Bd3 {[%emt 0:00:33]} Ne7 {[%emt 0:00:40]} 13. a3 {[%emt 0:01:29]} Nd7 {[%emt 0:02:31]} 14. O-O {[%emt 0:02:52]} f5 {[%emt 0:02:13]} 15. Nd2 {[%emt 0:03:24]} Nf6 {[%emt 0:09:32]} 16. f3 {[%emt 0:02:06]} Kd7 {[%emt 0:04:08]} 17. Na4 {[%emt 0:06:32]} Rae8 {[%emt 0:01:52]} 18. Nb3 {[%emt 0:02:50]} g6 {[%emt 0:03:16]} 19. Nbc5+ {[%emt 0:05:00]} Kc8 {[%emt 0:05:26]} 20. b4 {[%emt 0:07:44]} b5 {[%emt 0:06:37]} 21. Nc3 {[%emt 0:00:58]} Bxc5 {[%emt 0:00:18]} 22. dxc5 {[%emt 0:03:26]} Nd7 {[%emt 0:05:35]} 23. Rfd1 {[%emt 0:09:14]} Ne5 {[%emt 0:03:38]} 24. Bf1 {[%emt 0:02:17]} Rd8 {[%emt 0:04:45]} 25. Ne2 {[%emt 0:07:15]} Rhe8 {[%emt 0:05:32]} 26. Nd4 {[%emt 0:00:51]} Kb7 {[%emt 0:03:25]} 27. Kf2 {[%emt 0:06:14]} Ng8 {[%emt 0:01:46]} 28. h3 {[%emt 0:03:30]} Nf6 {[%emt 0:04:28]} 29. Rd2 {[%emt 0:01:54]} Nc4 {[%emt 0:02:44]} 30. Bxc4 {[%emt 0:00:36]} dxc4 {[%emt 0:01:26]} 31. g4 {[%emt 0:01:26]} fxg4 {[%emt 0:01:31]} 32. hxg4 {[%emt 0:00:07]} Nd5 {[%emt 0:01:08]} 33. Re2 {[%emt 0:01:17]} Re5 {[%emt 0:02:06]} 34. Rh1 {[%emt 0:03:16]} h5 {[%emt 0:04:00]} 35. f4 {[%emt 0:00:27]} Rf8 {[%emt 0:00:12]} 36. gxh5 {[%emt 0:01:18]} gxh5 {[%emt 0:01:43]} 37. Kf3 {[%emt 0:02:09]} Rf6 {[%emt 0:03:55]} 38. Rh4 {[%emt 0:02:56]} a5 {[%emt 0:05:54]} 39. Nc2 {[%emt 0:01:00]} axb4 {[%emt 0:02:15]} 40. axb4 {[%emt 0:00:08]} Nc3 {[%emt 0:04:14]} 41. Reh2 {[%emt 0:16:18]} Kc7 {[%emt 0:17:36]} 42. Rxh5 {[%emt 0:00:16]} Rxh5 {[%emt 0:00:09]} 43. Rxh5 {[%emt 0:00:05]} Kd7 {[%emt 0:00:20]} 44. e4 {[%emt 0:00:18]} Rf7 {[%emt 0:00:50]} 45. Rh6 {[%emt 0:02:23]} Na2 {[%emt 0:00:46]} 46. e5 {[%emt 0:00:12]} Rg7 {[%emt 0:00:30]} 47. f5 {[%emt 0:00:32]} Rg1 {[%emt 0:00:36]} 48. Rh7+ {[%emt 0:00:26]} Ke8 {[%emt 0:00:15]} 49. e6 {[%emt 0:00:16]} Rc1 {[%emt 0:00:14]} 50. Rh2 {[%emt 0:00:54]} Ke7 {[%emt 0:00:37]} 51. Ke4 {[%emt 0:00:08]} Nc3+ {[%emt 0:01:06]} 52. Ke5 {[%emt 0:00:14]} Nd5 {[%emt 0:00:11]} 53. Rh7+ {[%emt 0:00:20]} Ke8 {[%emt 0:01:04]} 54. Nd4 {[%emt 0:01:08]} Re1+ {[%emt 0:00:32]} 55. Kd6 {[%emt 0:00:12]} Kf8 {[%emt 0:00:08]} 56. f6 {[%emt 0:01:52]} Nxf6 {[%emt 0:00:44]} 57. Rf7+ {[%emt 0:00:06]} Ke8 {[%emt 0:00:20]} 58. Rxf6 {[%emt 0:00:05]} Rd1 {[%emt 0:00:26]} 59. Ke5 {[%emt 0:02:45]} Re1+ {[%emt 0:00:00]} 60. Kf5 {[%emt 0:00:00]} c3 {[%emt 0:00:00]} 61. Rg6 {[%emt 0:00:00]} Rd1 {[%emt 0:00:00]} 62. Rg8+ {[%emt 0:00:00]} 1-0

[Event "DSAM Bad Wildungen 2024"]
[Site "Bad Wildungen"]
[Date "2024.08.01"]
[Round "2.18"]
[White "Helms, Sven"]
[Black "Strebel, Michael"]
[Result "1-0"]
[Annotator "RC"]
[ECO "C10"]
[WhiteElo "1960"]
[BlackElo "1955"]
[PlyCount "121"]
[EventDate "2024.07.31"]
[EventCountry "GER"]
[SourceTitle "playchess.com"]
[Source "ChessBase"]
[SourceQuality "1"]
[TimeControl "40/5400+30:900+30"]

1. e4 {[%emt 0:00:04]} e6 {[%emt 0:00:05]} 2. d4 {[%emt 0:00:17]} d5 {[%emt 0:00:04]} 3. Nc3 {[%emt 0:00:18]} Nf6 {[%emt 0:00:10]} 4. Bg5 {[%emt 0:00:30]} dxe4 {[%emt 0:04:14]} 5. Nxe4 {[%emt 0:01:31]} Nbd7 {[%emt 0:00:06]} 6. Nf3 {[%emt 0:01:03]} h6 {[%emt 0:00:18]} 7. Bh4 {[%emt 0:01:46]} Be7 {[%emt 0:01:07]} 8. Nxf6+ {[%emt 0:02:44]} Nxf6 {[%emt 0:00:25]} 9. Bd3 {[%emt 0:01:17]} c5 {[%emt 0:14:32]} 10. O-O {[%emt 0:03:23]} cxd4 {[%emt 0:02:12]} 11. Nxd4 {[%emt 0:01:46]} Bd7 {[%emt 0:00:21]} 12. Qe2 {[%emt 0:04:28]} O-O {[%emt 0:09:17]} 13. Rfe1 {[%emt 0:05:55]} Bc5 {[%emt 0:00:56]} 14. Nb3 {[%emt 0:01:29]} Bb6 {[%emt 0:00:57]} 15. Rad1 {[%emt 0:02:18]} Qe7 {[%emt 0:00:18]} 16. Be4 {[%emt 0:08:27]} g5 {[%emt 0:18:05]} 17. Bxb7 {[%emt 0:13:42]} gxh4 {[%emt 0:00:55]} 18. Bxa8 {[%emt 0:00:33]} Rxa8 {[%emt 0:00:12]} 19. Nd4 {[%emt 0:01:04]} Qc5 {[%emt 0:23:29]} 20. Qf3 {[%emt 0:11:06]} Nd5 {[%emt 0:00:20]} 21. Re4 {[%emt 0:08:27]} Qe7 {[%emt 0:12:57]} 22. c4 {[%emt 0:13:18]} Bxd4 {[%emt 0:06:33]} 23. cxd5 {[%emt 0:00:40]} Bg7 {[%emt 0:01:49]} 24. dxe6 {[%emt 0:03:41]} Bc6 {[%emt 0:01:24]} 25. exf7+ {[%emt 0:02:09]} Qxf7 {[%emt 0:00:08]} 26. Qxf7+ {[%emt 0:00:25]} Kxf7 {[%emt 0:00:01]} 27. Rc4 {[%emt 0:00:26]} Bb5 {[%emt 0:01:22]} 28. Rc7+ {[%emt 0:00:36]} Kg6 {[%emt 0:00:16]} 29. b3 {[%emt 0:02:21]} a5 {[%emt 0:00:22]} 30. a4 {[%emt 0:02:44]} Be8 {[%emt 0:00:21]} 31. Rd6+ {[%emt 0:00:37]} Kh7 {[%emt 0:00:23]} 32. Rd4 {[%emt 0:00:46]} Rb8 {[%emt 0:00:46]} 33. Rxh4 {[%emt 0:00:55]} Rxb3 {[%emt 0:00:20]} 34. h3 {[%emt 0:00:45]} Kh8 {[%emt 0:01:14]} 35. Re4 {[%emt 0:00:39]} Rb8 {[%emt 0:00:31]} 36. Ree7 {[%emt 0:01:32]} Bf6 {[%emt 0:00:37]} 37. Re6 {[%emt 0:01:07]} Bg7 {[%emt 0:00:25]} 38. g4 {[%emt 0:00:49]} Bxa4 {[%emt 0:00:11]} 39. Ree7 {[%emt 0:00:29]} Bb2 {[%emt 0:00:26]} 40. Rh7+ {[%emt 0:00:38]} Kg8 {[%emt 0:00:08]} 41. Rxh6 {[%emt 0:15:54]} Bb3 {[%emt 0:15:30]} 42. Rg6+ {[%emt 0:00:53]} Kf8 {[%emt 0:00:15]} 43. h4 {[%emt 0:00:00]} a4 {[%emt 0:00:00]} 44. Ra7 {[%emt 0:00:00]} Bd4 {[%emt 0:00:00]} 45. Ra5 {[%emt 0:00:00]} Bc3 {[%emt 0:00:00]} 46. Ra7 {[%emt 0:00:00]} Rd8 {[%emt 0:00:00]} 47. h5 {[%emt 0:00:00]} Be5 {[%emt 0:01:03]} 48. h6 {[%emt 0:00:01]} Rd1+ {[%emt 0:01:26]} 49. Kg2 {[%emt 0:00:17]} Bd5+ {[%emt 0:00:21]} 50. f3 {[%emt 0:00:24]} Rd2+ {[%emt 0:00:28]} 51. Kf1 {[%emt 0:00:55]} Bg3 {[%emt 0:02:57]} 52. h7 {[%emt 0:01:25]} Bc4+ {[%emt 0:00:33]} 53. Kg1 {[%emt 0:00:26]} Bf2+ {[%emt 0:00:31]} 54. Kh1 {[%emt 0:00:15]} Bd4 {[%emt 0:00:16]} 55. Rg8+ {[%emt 0:01:13]} Bxg8 {[%emt 0:00:08]} 56. Ra8+ {[%emt 0:00:04]} Ke7 {[%emt 0:00:44]} 57. hxg8=Q {[%emt 0:00:23]} Rd1+ {[%emt 0:00:25]} 58. Kg2 {[%emt 0:00:15]} Rg1+ {[%emt 0:00:27]} 59. Kh2 {[%emt 0:00:11]} Rd1 {[%emt 0:00:54]} 60. Qf8+ {[%emt 0:00:26]} Ke6 {[%emt 0:00:14]} 61. Qf5+ {[%emt 0:00:21]} 1-0

[Event "DSAM Bad Wildungen 2024"]
[Site "Bad Wildungen"]
[Date "2024.08.01"]
[Round "2.19"]
[White "Schmidt-Schaeffer, Sebastian"]
[Black "Langer, Paul Georg"]
[Result "1/2-1/2"]
[Annotator "RC"]
[ECO "B92"]
[WhiteElo "2344"]
[BlackElo "1933"]
[PlyCount "106"]
[EventDate "2024.07.31"]
[EventCountry "GER"]
[SourceTitle "playchess.com"]
[Source "ChessBase"]
[SourceQuality "1"]
[TimeControl "40/5400+30:900+30"]

1. e4 {[%emt 0:00:03]} c5 {[%emt 0:00:08]} 2. Nf3 {[%emt 0:00:22]} d6 {[%emt 0:00:09]} 3. d4 {[%emt 0:00:14]} cxd4 {[%emt 0:00:10]} 4. Nxd4 {[%emt 0:01:37]} Nf6 {[%emt 0:00:06]} 5. Nc3 {[%emt 0:00:07]} a6 {[%emt 0:00:06]} 6. Be2 {[%emt 0:00:55]} e5 {[%emt 0:00:23]} 7. Nb3 {[%emt 0:00:18]} Be7 {[%emt 0:00:30]} 8. O-O {[%emt 0:01:32]} O-O {[%emt 0:01:44]} 9. Be3 {[%emt 0:01:02]} Nbd7 {[%emt 0:02:41]} 10. a4 {[%emt 0:02:23]} b6 {[%emt 0:02:32]} 11. f3 {[%emt 0:03:17]} Bb7 {[%emt 0:01:34]} 12. Qd2 {[%emt 0:03:12]} Qc7 {[%emt 0:01:56]} 13. Rfd1 {[%emt 0:02:38]} Rfd8 {[%emt 0:04:14]} 14. Qe1 {[%emt 0:07:15]} Nc5 {[%emt 0:04:14]} 15. Nxc5 {[%emt 0:03:23]} dxc5 {[%emt 0:01:30]} 16. Bc4 {[%emt 0:01:23]} Rxd1 {[%emt 0:06:25]} 17. Rxd1 {[%emt 0:00:33]} Rd8 {[%emt 0:01:06]} 18. Qe2 {[%emt 0:00:43]} Rxd1+ {[%emt 0:02:56]} 19. Nxd1 {[%emt 0:05:56]} Qd7 {[%emt 0:07:53]} 20. Nc3 {[%emt 0:01:31]} a5 {[%emt 0:02:35]} 21. Bb3 {[%emt 0:05:05]} Bc6 {[%emt 0:09:59]} 22. Qa6 {[%emt 0:06:16]} Bd8 {[%emt 0:01:00]} 23. Kf1 {[%emt 0:10:22]} Ne8 {[%emt 0:08:28]} 24. Bd5 {[%emt 0:23:27]} Nc7 {[%emt 0:12:19]} 25. Bxc6 {[%emt 0:00:42]} Qxc6 {[%emt 0:00:06]} 26. Qc8 {[%emt 0:01:14]} Qd6 {[%emt 0:06:31]} 27. Bg5 {[%emt 0:06:17]} f6 {[%emt 0:01:56]} 28. Be3 {[%emt 0:00:16]} Kf7 {[%emt 0:05:22]} 29. h4 {[%emt 0:03:28]} Ke8 {[%emt 0:04:42]} 30. Qg4 {[%emt 0:01:22]} Qd7 {[%emt 0:01:35]} 31. Qg3 {[%emt 0:02:33]} Ne6 {[%emt 0:04:31]} 32. b3 {[%emt 0:00:12]} Nd4 {[%emt 0:02:26]} 33. Qf2 {[%emt 0:00:39]} f5 {[%emt 0:01:48]} 34. Bxd4 {[%emt 0:01:45]} exd4 {[%emt 0:02:19]} 35. Nd5 {[%emt 0:00:15]} fxe4 {[%emt 0:00:08]} 36. fxe4 {[%emt 0:00:19]} Qg4 {[%emt 0:01:16]} 37. g3 {[%emt 0:05:50]} Qxe4 {[%emt 0:00:41]} 38. Qe2 {[%emt 0:00:31]} Qxe2+ {[%emt 0:00:13]} 39. Kxe2 {[%emt 0:00:02]} Kd7 {[%emt 0:00:44]} 40. Kf3 {[%emt 0:00:30]} Ke6 {[%emt 0:01:00]} 41. Ke4 {[%emt 0:15:47]} g6 {[%emt 0:06:03]} 42. h5 {[%emt 0:00:00]} gxh5 {[%emt 0:01:56]} 43. Nf4+ {[%emt 0:00:00]} Kf7 {[%emt 0:05:13]} 44. Nxh5 {[%emt 0:00:00]} Bc7 {[%emt 0:00:37]} 45. g4 {[%emt 0:00:00]} Kg6 {[%emt 0:00:14]} 46. Kf3 {[%emt 0:00:00]} h6 {[%emt 0:02:33]} 47. Ke4 {[%emt 0:00:00]} Kg5 {[%emt 0:01:41]} 48. Kf3 {[%emt 0:00:00]} Be5 {[%emt 0:00:21]} 49. Ng3 {[%emt 0:00:00]} Bxg3 {[%emt 0:00:35]} 50. Kxg3 {[%emt 0:00:00]} Kf6 {[%emt 0:00:43]} 51. Kf4 {[%emt 0:00:00]} Kg6 {[%emt 0:00:08]} 52. Kf3 {[%emt 0:00:00]} Kg5 {[%emt 0:00:34]} 53. Kg3 {[%emt 0:00:00]} Kf6 {[%emt 0:00:41]} 1/2-1/2

[Event "DSAM Bad Wildungen 2024"]
[Site "Bad Wildungen"]
[Date "2024.08.01"]
[Round "2.20"]
[White "Koelpin, Arvid"]
[Black "Willand, Oliver"]
[Result "0-1"]
[Annotator "NA RC"]
[ECO "A43"]
[WhiteElo "1865"]
[BlackElo "1868"]
[PlyCount "79"]
[EventDate "2024.07.31"]
[EventCountry "GER"]
[SourceTitle "playchess.com"]
[Source "ChessBase"]
[SourceQuality "1"]
[TimeControl "40/5400+30:900+30"]

1. d4 {[%emt 0:00:07]} c5 {[%emt 0:00:09]} 2. e3 {[%emt 0:00:16]} g6 {[%emt 0:04:17]} 3. d5 {[%emt 0:01:18]} d6 {[%emt 0:00:35]} 4. Nc3 {[%emt 0:00:47]} Bg7 {[%emt 0:00:30]} 5. Be2 {[%emt 0:00:24]} Nf6 {[%emt 0:00:21]} 6. e4 {[%emt 0:00:21]} O-O {[%emt 0:00:56]} 7. Nf3 {[%emt 0:00:07]} Na6 {[%emt 0:04:24]} 8. Bf4 {[%emt 0:01:29]} Nc7 {[%emt 0:02:14]} 9. Qd2 {[%emt 0:05:44]} Rb8 {[%emt 0:04:14]} 10. a4 {[%emt 0:00:47]} b6 {[%emt 0:00:40]} 11. h4 {[%emt 0:01:02]} h5 {[%emt 0:01:25]} 12. Rd1 {[%emt 0:02:31]} a6 {[%emt 0:12:49]} 13. Ng5 {[%emt 0:03:18]} b5 {[%emt 0:04:08]} 14. e5 {[%emt 0:01:45]} b4 {[%emt 0:03:30]} 15. exf6 {[%emt 0:11:10]} bxc3 {[%emt 0:01:28]} 16. bxc3 {[%emt 0:00:09]} exf6 {[%emt 0:12:31]} 17. Ne4 {[%emt 0:00:31]} Ne8 {[%emt 0:00:24]} 18. Nxc5 {[%emt 0:00:38]} f5 {[%emt 0:23:36]} 19. Nb3 {[%emt 0:04:11]} Nf6 {[%emt 0:01:20]} 20. f3 {[%emt 0:01:00]} Re8 {[%emt 0:05:44]} 21. O-O {[%emt 0:00:54]} Nd7 {[%emt 0:04:15]} 22. c4 {[%emt 0:05:25]} Qb6+ {[%emt 0:03:10]} 23. Kh1 {[%emt 0:00:53]} Nc5 {[%emt 0:00:31]} 24. a5 {[%emt 0:03:36]} Qc7 {[%emt 0:02:00]} 25. Rde1 {[%emt 0:09:09]} Nxb3 {[%emt 0:02:45]} 26. cxb3 {[%emt 0:00:08]} Rxb3 {[%emt 0:00:15]} 27. Bd1 {[%emt 0:00:08]} Rxe1 {[%emt 0:00:12]} 28. Rxe1 {[%emt 0:00:11]} Rb2 {[%emt 0:01:58]} 29. Re8+ {[%emt 0:00:34]} Kh7 {[%emt 0:00:11]} 30. Qe1 {[%emt 0:01:37]} Rb1 {[%emt 0:01:21]} 31. Qe2 {[%emt 0:01:22]} Qd7 {[%emt 0:03:08]} 32. Re3 {[%emt 0:00:46]} Bf6 {[%emt 0:00:25]} 33. Bg5 {[%emt 0:00:42]} Bxg5 {[%emt 0:00:18]} 34. hxg5 {[%emt 0:00:11]} Rb7 {[%emt 0:00:12]} 35. Re8 {[%emt 0:00:32]} Rc7 {[%emt 0:00:53]} 36. Bc2 {[%emt 0:03:21]} Rb7 {[%emt 0:00:40]} 37. Ba4 {[%emt 0:04:06]} Qxa4 {[%emt 0:00:19]} 38. Rxc8 {[%emt 0:00:16]} Rb1+ {[%emt 0:00:07]} 39. Kh2 {[%emt 0:00:19]} Qa1 {[%emt 0:00:09]} 40. f4 {[%emt 0:15:01]} 0-1

[Event "DSAM Bad Wildungen 2024"]
[Site "Bad Wildungen"]
[Date "2024.08.01"]
[Round "2.21"]
[White "Dubinker, Philipp"]
[Black "Pick, Max"]
[Result "0-1"]
[Annotator "RC"]
[ECO "B38"]
[WhiteElo "1921"]
[BlackElo "1906"]
[PlyCount "136"]
[EventDate "2024.07.31"]
[EventCountry "GER"]
[SourceTitle "playchess.com"]
[Source "ChessBase"]
[SourceQuality "1"]
[TimeControl "40/5400+30:900+30"]

1. Nf3 {[%emt 0:00:05]} c5 {[%emt 0:00:50]} 2. c4 {[%emt 0:06:55]} g6 {[%emt 0:00:26]} 3. d4 {[%emt 0:00:22]} Bg7 {[%emt 0:00:32]} 4. e4 {[%emt 0:00:18]} cxd4 {[%emt 0:00:34]} 5. Nxd4 {[%emt 0:00:07]} Nc6 {[%emt 0:00:38]} 6. Be3 {[%emt 0:00:08]} Nf6 {[%emt 0:01:23]} 7. Nc3 {[%emt 0:00:05]} d6 {[%emt 0:03:50]} 8. Be2 {[%emt 0:00:08]} Ne5 {[%emt 0:06:31]} 9. h3 {[%emt 0:04:01]} O-O {[%emt 0:03:12]} 10. O-O {[%emt 0:00:16]} a6 {[%emt 0:03:30]} 11. Qd2 {[%emt 0:06:14]} Nc6 {[%emt 0:05:44]} 12. Rfd1 {[%emt 0:03:09]} Bd7 {[%emt 0:01:59]} 13. Rac1 {[%emt 0:08:07]} Rc8 {[%emt 0:04:23]} 14. a3 {[%emt 0:10:02]} Na5 {[%emt 0:05:49]} 15. Nd5 {[%emt 0:11:27]} e5 {[%emt 0:18:29]} 16. Bg5 {[%emt 0:06:11]} b6 {[%emt 0:11:24]} 17. Bxf6 {[%emt 0:03:16]} Bxf6 {[%emt 0:00:24]} 18. Nxf6+ {[%emt 0:00:12]} Qxf6 {[%emt 0:00:07]} 19. b4 {[%emt 0:00:17]} Ba4 {[%emt 0:01:42]} 20. Re1 {[%emt 0:02:08]} Nb3 {[%emt 0:06:29]} 21. Nxb3 {[%emt 0:00:48]} Bxb3 {[%emt 0:00:03]} 22. Rc3 {[%emt 0:02:29]} Ba4 {[%emt 0:00:16]} 23. Bd1 {[%emt 0:04:13]} Bd7 {[%emt 0:06:46]} 24. Rd3 {[%emt 0:01:42]} Be6 {[%emt 0:01:34]} 25. Rxd6 {[%emt 0:01:57]} Qh4 {[%emt 0:03:44]} 26. Rxb6 {[%emt 0:05:07]} Rfd8 {[%emt 0:03:22]} 27. Rd6 {[%emt 0:02:28]} Rxd6 {[%emt 0:00:51]} 28. Qxd6 {[%emt 0:00:12]} Rxc4 {[%emt 0:00:23]} 29. Qxe5 {[%emt 0:03:36]} Rc1 {[%emt 0:00:29]} 30. Qd6 {[%emt 0:03:22]} Qg5 {[%emt 0:01:07]} 31. Qd3 {[%emt 0:01:13]} Bc4 {[%emt 0:01:03]} 32. Qd4 {[%emt 0:01:17]} Be6 {[%emt 0:01:12]} 33. Kh1 {[%emt 0:01:22]} Rb1 {[%emt 0:01:40]} 34. Qc3 {[%emt 0:01:58]} Rc1 {[%emt 0:01:42]} 35. Qd4 {[%emt 0:01:26]} Rb1 {[%emt 0:02:53]} 36. Rg1 {[%emt 0:00:48]} Qc1 {[%emt 0:00:38]} 37. Qe3 {[%emt 0:01:30]} Qc6 {[%emt 0:01:31]} 38. f3 {[%emt 0:04:21]} Rb2 {[%emt 0:01:10]} 39. Qf4 {[%emt 0:02:01]} Ra2 {[%emt 0:00:43]} 40. Qb8+ {[%emt 0:02:13]} Kg7 {[%emt 0:00:09]} 41. a4 {[%emt 0:15:40]} Qd7 {[%emt 0:01:36]} 42. Qg3 {[%emt 0:00:00]} Qd4 {[%emt 0:00:32]} 43. b5 {[%emt 0:00:00]} axb5 {[%emt 0:02:21]} 44. axb5 {[%emt 0:00:00]} Rd2 {[%emt 0:03:37]} 45. Qe1 {[%emt 0:00:00]} Qb2 {[%emt 0:02:07]} 46. b6 {[%emt 0:00:00]} Bxh3 {[%emt 0:01:32]} 47. b7 {[%emt 0:00:00]} Rxg2 {[%emt 0:01:25]} 48. b8=Q {[%emt 0:00:00]} Rxg1+ {[%emt 0:00:13]} 49. Qxg1 {[%emt 0:00:00]} Qxb8 {[%emt 0:00:08]} 50. Qd4+ {[%emt 0:00:00]} f6 {[%emt 0:00:45]} 51. Qg1 {[%emt 0:00:00]} Qf4 {[%emt 0:00:47]} 52. Qa7+ {[%emt 0:00:00]} Kh6 {[%emt 0:00:09]} 53. Qg1 {[%emt 0:00:00]} g5 {[%emt 0:01:23]} 54. Qe1 {[%emt 0:00:00]} Kh5 {[%emt 0:01:05]} 55. Qg1 {[%emt 0:00:00]} Qh4 {[%emt 0:00:41]} 56. Qh2 {[%emt 0:00:32]} h6 {[%emt 0:01:23]} 57. Ba4 {[%emt 0:01:09]} Qe1+ {[%emt 0:00:53]} 58. Qg1 {[%emt 0:00:08]} Qe2 {[%emt 0:00:59]} 59. Qg3 {[%emt 0:00:53]} Qf1+ {[%emt 0:01:22]} 60. Kh2 {[%emt 0:00:11]} g4 {[%emt 0:00:33]} 61. Be8+ {[%emt 0:03:00]} Kg5 {[%emt 0:00:08]} 62. Bf7 {[%emt 0:00:44]} Qe2+ {[%emt 0:00:20]} 63. Kg1 {[%emt 0:00:20]} Qxf3 {[%emt 0:01:44]} 64. Qxf3 {[%emt 0:00:30]} gxf3 {[%emt 0:00:04]} 65. Kf2 {[%emt 0:00:10]} Kf4 {[%emt 0:00:14]} 66. Be8 {[%emt 0:01:04]} Bg4 {[%emt 0:00:25]} 67. Bb5 {[%emt 0:00:34]} h5 {[%emt 0:00:19]} 68. Bf1 {[%emt 0:01:05]} h4 {[%emt 0:00:05]} 0-1

[Event "DSAM Bad Wildungen 2024"]
[Site "Bad Wildungen"]
[Date "2024.08.01"]
[Round "2.22"]
[White "Maes, Patrick"]
[Black "Reinecke, Katharina"]
[Result "1/2-1/2"]
[Annotator "RC"]
[ECO "B10"]
[WhiteElo "1943"]
[BlackElo "1949"]
[PlyCount "94"]
[EventDate "2024.07.31"]
[EventCountry "GER"]
[SourceTitle "playchess.com"]
[Source "ChessBase"]
[SourceQuality "1"]
[TimeControl "40/5400+30:900+30"]

1. e4 {[%emt 0:00:04]} c6 {[%emt 0:00:03]} 2. d3 {[%emt 0:00:08]} d5 {[%emt 0:00:05]} 3. Nd2 {[%emt 0:00:09]} e5 {[%emt 0:00:12]} 4. Ngf3 {[%emt 0:00:24]} Bd6 {[%emt 0:00:17]} 5. d4 {[%emt 0:01:00]} exd4 {[%emt 0:04:49]} 6. exd5 {[%emt 0:00:19]} c5 {[%emt 0:06:11]} 7. Bb5+ {[%emt 0:07:49]} Bd7 {[%emt 0:06:18]} 8. Qe2+ {[%emt 0:01:46]} Ne7 {[%emt 0:03:29]} 9. Ne4 {[%emt 0:09:16]} Qc7 {[%emt 0:08:41]} 10. O-O {[%emt 0:14:48]} O-O {[%emt 0:02:26]} 11. Bc4 {[%emt 0:04:16]} Bg4 {[%emt 0:15:18]} 12. h3 {[%emt 0:07:39]} Bh5 {[%emt 0:02:57]} 13. Nxd6 {[%emt 0:03:09]} Qxd6 {[%emt 0:02:45]} 14. Qe5 {[%emt 0:01:46]} Qxe5 {[%emt 0:04:35]} 15. Nxe5 {[%emt 0:00:08]} Rd8 {[%emt 0:09:21]} 16. Bg5 {[%emt 0:06:42]} Kf8 {[%emt 0:00:56]} 17. Bxe7+ {[%emt 0:05:25]} Kxe7 {[%emt 0:00:09]} 18. Rfe1 {[%emt 0:00:51]} Kf8 {[%emt 0:04:29]} 19. c3 {[%emt 0:06:17]} dxc3 {[%emt 0:02:58]} 20. bxc3 {[%emt 0:00:24]} f6 {[%emt 0:03:09]} 21. Nd3 {[%emt 0:01:06]} Nd7 {[%emt 0:01:16]} 22. Nf4 {[%emt 0:16:57]} Ne5 {[%emt 0:10:56]} 23. Ne6+ {[%emt 0:01:00]} Kf7 {[%emt 0:00:24]} 24. Nxd8+ {[%emt 0:00:57]} Rxd8 {[%emt 0:00:04]} 25. Be2 {[%emt 0:04:02]} Bxe2 {[%emt 0:00:23]} 26. Rxe2 {[%emt 0:00:08]} Rxd5 {[%emt 0:00:16]} 27. Rae1 {[%emt 0:01:55]} g5 {[%emt 0:01:57]} 28. Re3 {[%emt 0:01:52]} b5 {[%emt 0:03:05]} 29. a4 {[%emt 0:01:33]} b4 {[%emt 0:01:14]} 30. cxb4 {[%emt 0:01:28]} cxb4 {[%emt 0:00:06]} 31. Kf1 {[%emt 0:00:43]} Ra5 {[%emt 0:01:47]} 32. g3 {[%emt 0:01:31]} Rxa4 {[%emt 0:00:45]} 33. f4 {[%emt 0:00:14]} gxf4 {[%emt 0:00:30]} 34. gxf4 {[%emt 0:00:03]} Ng6 {[%emt 0:01:20]} 35. f5 {[%emt 0:00:47]} Ne5 {[%emt 0:02:27]} 36. Rc1 {[%emt 0:01:54]} Ke7 {[%emt 0:02:00]} 37. Rc7+ {[%emt 0:00:00]} Kd6 {[%emt 0:00:04]} 38. Rxh7 {[%emt 0:00:00]} Kd5 {[%emt 0:00:31]} 39. Rc7 {[%emt 0:00:43]} Kd4 {[%emt 0:00:38]} 40. Rb3 {[%emt 0:00:36]} Ke4 {[%emt 0:00:00]} 41. Rb7 {[%emt 0:03:14]} a5 {[%emt 0:01:01]} 42. h4 {[%emt 0:05:56]} Ra2 {[%emt 0:04:58]} 43. h5 {[%emt 0:02:48]} Rh2 {[%emt 0:07:23]} 44. Ra7 {[%emt 0:00:53]} Rxh5 {[%emt 0:02:07]} 45. Rxa5 {[%emt 0:00:20]} Rxf5+ {[%emt 0:00:17]} 46. Ke2 {[%emt 0:01:11]} Rg5 {[%emt 0:02:46]} 47. Rxb4+ {[%emt 0:01:55]} Kf5 {[%emt 0:00:10]} 1/2-1/2

[Event "DSAM Bad Wildungen 2024"]
[Site "Bad Wildungen"]
[Date "2024.08.01"]
[Round "2.23"]
[White "Drews, Nicolas"]
[Black "Dorendorf, Mika"]
[Result "1/2-1/2"]
[Annotator "RC"]
[ECO "E18"]
[WhiteElo "1780"]
[BlackElo "1959"]
[PlyCount "80"]
[EventDate "2024.07.31"]
[EventCountry "GER"]
[SourceTitle "playchess.com"]
[Source "ChessBase"]
[SourceQuality "1"]
[TimeControl "40/5400+30:900+30"]

1. d4 {[%emt 0:00:07]} d5 {[%emt 0:00:05]} 2. c4 {[%emt 0:00:06]} e6 {[%emt 0:00:06]} 3. Nf3 {[%emt 0:00:05]} Nf6 {[%emt 0:00:05]} 4. g3 {[%emt 0:00:07]} Be7 {[%emt 0:00:11]} 5. Bg2 {[%emt 0:00:06]} O-O {[%emt 0:00:12]} 6. O-O {[%emt 0:00:04]} b6 {[%emt 0:00:17]} 7. cxd5 exd5 {[%emt 0:00:25]} 8. Nc3 {[%emt 0:00:37]} Bb7 {[%emt 0:00:06]} 9. Bf4 {[%emt 0:01:35]} c5 {[%emt 0:05:56]} 10. Rc1 {[%emt 0:03:49]} Nc6 {[%emt 0:01:02]} 11. Na4 {[%emt 0:11:50]} c4 {[%emt 0:03:05]} 12. b3 {[%emt 0:01:20]} b5 {[%emt 0:00:28]} 13. Nc5 {[%emt 0:00:43]} Bxc5 14. dxc5 {[%emt 0:00:02]} Nb4 {[%emt 0:14:59]} 15. Qd2 {[%emt 0:06:23]} Na6 {[%emt 0:01:31]} 16. Nd4 {[%emt 0:08:47]} Qd7 {[%emt 0:08:44]} 17. Qa5 {[%emt 0:03:21]} Nxc5 {[%emt 0:05:48]} 18. Qxb5 {[%emt 0:00:36]} Qxb5 19. Nxb5 {[%emt 0:00:02]} Nce4 {[%emt 0:13:50]} 20. f3 {[%emt 0:04:41]} Nc5 {[%emt 0:01:49]} 21. bxc4 {[%emt 0:00:53]} Ne6 {[%emt 0:01:13]} 22. Bd6 {[%emt 0:04:18]} Rfc8 {[%emt 0:01:03]} 23. cxd5 Bxd5 {[%emt 0:00:47]} 24. Nxa7 {[%emt 0:14:53]} Rxc1 25. Rxc1 {[%emt 0:00:02]} Bxa2 {[%emt 0:14:09]} 26. Rc8+ {[%emt 0:03:26]} Rxc8 27. Nxc8 {[%emt 0:00:01]} Nd5 {[%emt 0:02:50]} 28. Ne7+ {[%emt 0:00:46]} Nxe7 29. Bxe7 {[%emt 0:00:02]} h6 {[%emt 0:01:32]} 30. Kf2 {[%emt 0:01:10]} Bd5 {[%emt 0:01:15]} 31. e4 {[%emt 0:01:09]} Bc6 {[%emt 0:00:10]} 32. Ke3 {[%emt 0:00:48]} g6 {[%emt 0:05:54]} 33. Bf1 {[%emt 0:06:27]} Kg7 {[%emt 0:00:52]} 34. Bc4 {[%emt 0:00:27]} h5 {[%emt 0:00:38]} 35. f4 {[%emt 0:01:39]} Nc7 {[%emt 0:01:45]} 36. Kd4 {[%emt 0:02:10]} Bd7 {[%emt 0:01:08]} 37. Kc5 {[%emt 0:03:55]} Ne8 38. Bb5 {[%emt 0:00:30]} Bxb5 39. Kxb5 {[%emt 0:00:30]} f6 40. Kc6 {[%emt 0:00:30]} Kf7 1/2-1/2